bitfinex-derivatives/quotes_ETHF0:USTF0_20250624
["timestamp","ask_amount","ask_price","bid_price","bid_amount"]
[1750751826451,0.8337,2397.5,2397.4,0.83367]
[1750751826953,5.52953162,2397.6,2397.5,0.83367]
[1750751827348,0.83367,2397.6,2397.5,0.83367]
[1750751827760,0.83361,2397.7,2397.6,0.83364]
[1750751828145,3.2078,2398.1,2397.7,2.08402]
[1750751828355,0.83338,2398.4,2398.3,0.83337]
[1750751828757,10.33338,2398.4,2398.3,0.83337]
[1750751829254,0.83331,2398.6,2398.3,5.29126]
[1750751829457,0.83331,2398.6,2398.2,0.83339]
[1750751829458,0.83342,2398.3,2398.2,0.83339]
[1750751829758,10.33334,2398.5,2398.4,0.83333]
[1750751830265,9.5,2398.5,2398.4,0.83333]
[1750751830850,16.27921162,2398.5,2397.8,0.9138]
[1750751831054,0.83346,2398.2,2398.1,0.83344]
[1750751831258,2.08376,2398.0,2397.2,5.29224]
[1750751831452,2.08376,2398.0,2397.4,2.08428]
[1750751831453,5.09217827,2397.9,2397.4,2.08428]
[1750751831651,0.83364,2397.7,2397.6,0.83362]
[1750751832754,0.83359,2397.8,2397.7,0.83357]
[1750751832952,0.8337,2397.5,2397.4,0.83368]
[1750751833148,6.16847,2397.9,2397.3,1.3608]
[1750751833353,2.08393,2397.8,2397.3,1.3608]
[1750751833554,6.13646162,2397.7,2397.3,1.3608]
[1750751833757,0.83381,2397.2,2397.1,0.8338]
[1750751834155,0.83385,2397.1,2397.0,0.83384]
[1750751834354,4.69586162,2397.1,2396.7,1.3608]
[1750751834559,0.83392,2396.9,2396.8,0.83392]
[1750751834952,0.83387,2397.0,2396.9,0.83387]
[1750751835152,0.83384,2397.1,2397.0,0.83384]
[1750751835459,0.83384,2397.1,2396.7,1.3608]
[1750751835460,3.2078,2397.3,2396.7,1.3608]
[1750751835763,0.83386,2397.0,2396.9,0.83387]
[1750751836254,0.83383,2397.1,2397.0,0.83384]
[1750751836452,0.83388,2397.0,2396.8,0.83392]
[1750751836654,9.5,2397.2,2396.9,4.6554]
[1750751836853,0.83382,2397.1,2397.0,0.83383]
[1750751837660,10.33379,2397.2,2397.1,0.83381]
[1750751837963,10.33378,2397.2,2397.1,0.83381]
[1750751838262,9.5,2397.2,2397.1,0.83381]
[1750751838858,3.2078,2397.3,2397.2,0.83378]
[1750751839060,0.83367,2397.6,2397.5,0.83366]
[1750751839361,0.83363,2397.7,2397.6,0.83364]
[1750751839560,1.84429822,2397.7,2397.6,0.83364]
[1750751839951,1.01066822,2397.7,2397.6,0.83364]
[1750751840656,10.33357,2397.8,2397.7,0.8336]
[1750751840958,0.83364,2397.7,2397.6,0.83362]
[1750751841163,1.011186,2397.7,2397.6,0.83364]
[1750751841855,1.011186,2397.7,2397.6,2.19634]
[1750751842054,10.33357,2397.8,2397.7,0.8336]
[1750751842353,0.8336,2397.7,2397.6,2.19632]
[1750751842561,10.51113537,2397.8,2397.7,0.8336]
[1750751842562,10.33359,2397.8,2397.7,0.8336]
[1750751842759,10.51112675,2397.8,2397.7,0.8336]
[1750751843061,10.51123543,2397.8,2397.7,0.8336]
[1750751843254,11.34492707,2397.8,2397.7,0.8336]
[1750751843455,10.51136458,2397.8,2397.7,0.8336]
[1750751843656,9.5,2397.8,2397.7,0.8336]
[1750751844052,3.2078,2398.1,2398.0,0.8335]
[1750751844270,1.01087978,2398.1,2398.0,4.0413]
[1750751844467,1.84434978,2398.1,2398.0,4.0413]
[1750751844658,11.34434978,2398.1,2398.0,5.4547]
[1750751844859,10.51087978,2398.1,2398.0,5.4547]
[1750751845166,9.5,2398.1,2398.0,5.4547]
[1750751845367,3.2078,2398.9,2398.6,0.83329]
[1750751845559,1.01085598,2398.7,2398.6,0.83329]
[1750751845758,10.51085598,2398.7,2398.6,0.83329]
[1750751845956,1.01085598,2398.7,2398.6,2.24669]
[1750751846159,3.2078,2398.9,2398.6,1.4134]
[1750751846370,0.83324,2398.8,2398.7,0.83323]
[1750751846567,10.33324,2398.8,2398.7,0.83323]
[1750751846758,10.33324,2398.8,2398.6,1.4134]
[1750751846759,0.83326,2398.7,2398.6,2.24666]
[1750751846960,0.83336,2398.5,2398.4,0.83335]
[1750751847662,0.83331,2398.6,2398.5,0.8333]
[1750751849067,0.83335,2398.5,2398.4,0.83333]
[1750751849275,0.83332,2398.6,2398.5,0.8333]
[1750751849660,0.83335,2398.5,2398.4,0.83334]
[1750751849857,4.69586162,2398.5,2398.1,4.1266]
[1750751850068,4.69586162,2398.5,2398.1,0.83343]
[1750751850069,0.83345,2398.2,2398.1,0.83343]
[1750751850265,11.58341,2398.4,2397.8,4.0996]
[1750751850465,4.69586162,2398.2,2397.8,4.0996]
[1750751850671,0.83354,2397.9,2397.8,4.04134]
[1750751850966,0.83354,2397.9,2397.8,0.83354]
[1750751851170,0.83364,2397.7,2397.6,0.83364]
[1750751851468,4.69586162,2397.9,2397.4,0.8951]
[1750751851668,0.83353,2398.0,2397.9,0.83352]
[1750751851860,1.8414719,2398.0,2397.9,0.83352]
[1750751852068,0.83357,2397.9,2397.8,0.83355]
[1750751852271,0.83364,2397.6,2397.5,2.26026]
[1750751852566,0.83366,2397.6,2397.5,0.83365]
[1750751852876,0.8337,2397.5,2397.4,0.83368]
[1750751853574,0.83363,2397.7,2397.6,0.83361]
[1750751853774,0.83369,2397.6,2397.5,0.83366]
[1750751853974,0.83369,2397.5,2397.4,0.83368]
[1750751854275,0.83363,2397.7,2397.6,0.83362]
[1750751854570,0.83365,2397.6,2397.5,0.83365]
[1750751854968,0.83368,2397.5,2397.4,0.83367]
[1750751855175,0.83367,2397.6,2397.5,0.83365]
[1750751855776,0.83367,2397.6,2397.2,3.2078]
[1750751855777,0.83374,2397.3,2397.2,3.2078]
[1750751855972,0.83379,2397.2,2397.1,0.83377]
[1750751856376,10.33379,2397.2,2397.1,0.83377]
[1750751856675,9.5,2397.2,2397.1,0.83377]
[1750751857066,10.33377,2397.2,2397.1,0.83377]
[1750751857268,0.83391,2396.9,2396.8,0.83389]
[1750751857779,0.83391,2396.8,2396.7,3.2078]
[1750751857973,3.2078,2396.9,2396.3,3.2078]
[1750751858283,0.83398,2396.7,2396.6,0.83396]
[1750751858577,0.834,2396.6,2396.5,0.83399]
[1750751858964,0.83397,2396.7,2396.6,0.83397]
[1750751859164,0.834,2396.6,2396.5,0.83399]
[1750751859972,0.83398,2396.7,2396.6,0.83396]
[1750751860170,0.83401,2396.6,2396.5,0.83399]
[1750751860578,7.588,2396.8,2396.4,2.08511]
[1750751860780,8.42193,2396.8,2396.7,0.83395]
[1750751861771,0.83399,2396.7,2396.6,0.83396]
[1750751862775,7.588,2396.8,2396.7,0.83395]
[1750751863174,8.42191,2396.8,2396.7,0.83395]
[1750751863478,0.83391,2396.8,2396.7,0.83395]
[1750751864680,9.32649,2396.9,2396.8,0.83391]
[1750751865069,9.32649,2396.9,2396.6,3.2078]
[1750751865273,0.83404,2396.5,2396.4,0.83401]
[1750751865475,0.83396,2396.7,2396.6,0.83395]
[1750751866791,0.8799,2396.8,2396.7,0.83395]
[1750751866983,0.83398,2396.6,2396.5,1.3973]
[1750751867280,0.83405,2396.5,2396.4,0.83402]
[1750751867485,0.83405,2396.5,2396.4,0.83405]
[1750751867486,8.42504,2396.5,2396.4,0.83405]
[1750751867784,0.83405,2396.4,2396.3,4.04186]
[1750751868185,2.2628,2396.8,2396.4,0.83405]
[1750751868384,0.83398,2396.7,2396.6,0.83395]
[1750751868880,7.08488,2396.7,2396.0,3.2078]
[1750751869089,6.78123162,2396.2,2395.6,6.73493]
[1750751869277,0.83422,2396.0,2395.9,0.8342]
[1750751869474,0.83426,2395.9,2395.8,0.83423]
[1750751869673,2.08557,2395.9,2395.6,3.2078]
[1750751869880,3.2078,2395.7,2395.0,5.29415]
[1750751870083,0.83442,2395.4,2395.3,0.83441]
[1750751870681,6.78181162,2395.5,2395.0,0.83451]
[1750751870877,4.69586162,2395.5,2395.0,3.2078]
[1750751871082,4.69586162,2395.2,2394.8,1.4413]
[1750751871387,0.83455,2395.0,2394.9,0.83456]
[1750751871577,3.00357,2395.6,2394.7,3.2078]
[1750751871578,0.9177,2395.6,2394.7,3.2078]
[1750751871777,7.591,2395.5,2395.2,3.2078]
[1750751871979,0.83441,2395.4,2395.3,0.83442]
[1750751872174,0.83443,2395.3,2395.2,4.04225]
[1750751872380,0.83443,2395.3,2395.0,1.3545]
[1750751872381,0.8345,2395.1,2395.0,1.3545]
[1750751872586,0.83454,2395.0,2394.9,0.83456]
[1750751872781,0.83453,2395.1,2395.0,0.83453]
[1750751873277,42.9638,2395.1,2393.8,3.2078]
[1750751873476,0.83481,2394.3,2394.1,0.83484]
[1750751873681,0.83479,2394.3,2394.1,0.83484]
[1750751873889,0.83478,2394.3,2393.8,5.4808]
[1750751874086,0.83477,2394.4,2394.1,0.83484]
[1750751874294,7.592,2394.5,2393.8,5.4808]
[1750751874491,0.8348,2394.3,2394.1,0.83483]
[1750751874692,7.592,2394.5,2393.8,5.4808]
[1750751874987,4.69586162,2394.4,2393.9,0.8349]
[1750751875288,0.83484,2394.2,2393.8,2.273]
[1750751875680,6.11086162,2394.4,2394.0,0.83488]
[1750751875880,9.31866162,2394.4,2394.0,0.83488]
[1750751876388,9.31866162,2394.4,2393.8,2.273]
[1750751876695,34.766,2394.3,2393.8,2.273]
[1750751876893,35.60081,2394.3,2394.1,0.83485]
[1750751877397,0.83482,2394.2,2394.1,0.83485]
[1750751877686,7.90366162,2394.4,2394.0,0.83488]
[1750751877885,3.2078,2394.5,2394.3,0.83477]
[1750751878188,3.2078,2394.5,2394.2,0.83479]
[1750751878390,35.59977,2394.4,2394.2,0.83479]
[1750751878588,35.59977,2394.4,2394.2,0.83482]
[1750751878589,7.595,2394.3,2394.2,0.83482]
[1750751878791,13.67476162,2394.3,2393.8,0.83494]
[1750751878994,0.83494,2393.9,2393.6,3.2078]
[1750751879290,31.87186162,2394.0,2393.6,3.2078]
[1750751879490,0.83499,2393.7,2393.6,4.0428]
[1750751879989,8.4854,2394.1,2393.6,4.0428]
[1750751879990,28.01076,2394.4,2394.3,0.83478]
[1750751880294,0.9575,2394.9,2394.3,3.2078]
[1750751880593,0.83473,2394.5,2394.4,0.83472]
[1750751880895,0.83466,2394.7,2394.6,0.83468]
[1750751881187,0.42597432,2395.2,2395.1,0.8345]
[1750751881379,0.42597432,2395.2,2395.1,4.0423]
[1750751881584,41.272,2395.7,2395.3,0.83443]
[1750751881784,0.83438,2395.5,2395.3,0.83443]
[1750751881987,4.69586162,2395.5,2394.8,3.2078]
[1750751882189,2.08655,2394.8,2394.2,0.83481]
[1750751882386,4.69586162,2394.4,2394.3,0.83477]
[1750751882582,11.20686162,2394.7,2394.1,3.2078]
[1750751882788,0.83472,2394.5,2394.3,0.83475]
[1750751883493,27.177,2394.6,2394.3,0.83478]
[1750751883691,0.83472,2394.5,2394.3,0.83478]
[1750751884089,0.83475,2394.4,2394.3,0.83478]
[1750751884294,0.83473,2394.5,2394.3,0.83478]
[1750751884490,0.83475,2394.4,2394.3,0.83478]
[1750751884994,0.83474,2394.5,2394.1,3.2078]
[1750751885190,27.177,2394.6,2394.2,1.449]
[1750751885395,0.83478,2394.3,2394.2,2.2838]
[1750751886187,0.83477,2394.4,2394.3,0.83478]
[1750751886391,0.83473,2394.5,2394.3,0.83476]
[1750751886793,0.83473,2394.5,2394.2,1.449]
[1750751886794,28.1365,2394.7,2394.4,3.2078]
[1750751887097,0.83465,2394.7,2394.5,2.16639]
[1750751887301,0.83468,2394.6,2394.5,1.3317]
[1750751887497,0.83466,2394.7,2394.5,1.3317]
[1750751887696,0.83461,2394.8,2394.7,0.83463]
[1750751887901,0.83458,2394.9,2394.5,2.2539]
[1750751888291,0.83461,2394.8,2394.7,0.83463]
[1750751888491,30.3858,2395.0,2394.8,0.83459]
[1750751888896,0.83459,2394.9,2394.8,0.83459]
[1750751889096,31.22036,2395.0,2394.9,0.83457]
[1750751889302,0.83459,2394.9,2394.8,0.83459]
[1750751890599,30.3858,2395.0,2394.9,0.83457]
[1750751890600,4.04234,2395.0,2394.9,0.83457]
[1750751890796,3.2078,2395.0,2394.9,0.83457]
[1750751891399,0.83454,2395.0,2394.9,0.83457]
[1750751892092,0.83461,2394.8,2394.7,3.2078]
[1750751892394,0.83476,2394.4,2394.3,0.83475]
[1750751892605,3.2078,2394.4,2394.3,0.83478]
[1750751892790,4.04255,2394.4,2394.3,0.83478]
[1750751892991,3.2078,2394.4,2394.3,0.83478]
[1750751893299,3.2078,2394.4,2394.1,1.3453]
[1750751893495,3.2078,2394.4,2394.3,0.83478]
[1750751896299,3.2078,2394.4,2394.0,2.0872]
[1750751896500,3.2078,2394.4,2394.3,0.83478]
[1750751896692,3.2078,2394.5,2394.2,2.08702]
[1750751896892,3.2078,2394.5,2394.4,0.83475]
[1750751897303,0.8346,2394.9,2394.8,0.83459]
[1750751897605,17.58856973,2395.4,2394.8,0.83459]
[1750751897606,3.2078,2395.8,2394.9,2.08643]
[1750751897902,1.01652954,2395.7,2395.6,0.83433]
[1750751898293,3.2078,2395.8,2395.7,0.83429]
[1750751898494,4.22577275,2395.8,2395.7,0.83429]
[1750751899106,5.06003275,2395.8,2395.5,1.3207]
[1750751899293,3.2078,2395.8,2395.7,0.83429]
[1750751899494,3.2078,2395.8,2395.5,1.3207]
[1750751899495,4.22622587,2395.8,2395.5,1.3207]
[1750751899706,1.01842587,2395.7,2395.5,1.3207]
[1750751899891,0.83431,2395.7,2395.6,0.83433]
[1750751900091,0.83437,2395.5,2395.3,0.9513]
[1750751900297,0.83437,2395.5,2395.4,0.8344]
[1750751900704,1.8524191,2395.5,2395.4,0.8344]
[1750751901101,1.0180491,2395.5,2395.4,0.8344]
[1750751901404,0.83431,2395.7,2395.5,0.83435]
[1750751901599,1.85147195,2395.6,2395.5,0.83435]
[1750751901797,1.85147195,2395.6,2395.4,0.83438]
[1750751901993,0.83433,2395.6,2395.4,0.83437]
[1750751902195,0.83436,2395.5,2395.3,2.3441]
[1750751902396,0.83436,2395.5,2395.3,3.17851]
[1750751902702,0.8344,2395.4,2395.3,3.17851]
[1750751903003,7.9,2395.4,2395.3,3.17851]
[1750751906910,8.7344,2395.4,2395.3,3.17851]
[1750751907098,7.9,2395.4,2395.3,3.17851]
[1750751908002,7.9,2395.4,2395.3,2.3441]
[1750751908003,8.7344,2395.4,2395.3,2.3441]
[1750751908207,7.9,2395.4,2395.3,3.17853]
[1750751908402,8.7344,2395.4,2395.3,0.83443]
[1750751909705,8.7344,2395.4,2394.7,0.32550046]
[1750751909706,65.36792402,2395.4,2394.0,3.3128994]
[1750751910005,3.2078,2394.3,2394.0,0.83488]
[1750751910206,0.83485,2394.1,2394.0,0.83488]
[1750751910404,0.83485,2394.1,2394.0,1.1]
[1750751910793,0.83485,2394.1,2394.0,1.93489]
[1750751910993,0.83485,2394.1,2394.0,1.1]
[1750751911407,17.27792402,2394.1,2392.6,3.3128994]
[1750751911605,0.8351,2393.4,2393.2,0.83514]
[1750751911798,3.2078,2393.5,2392.9,1.3256]
[1750751912002,0.8351,2393.4,2393.3,1.1]
[1750751912207,10.09652402,2393.4,2393.3,1.1]
[1750751912412,11.11092649,2393.4,2393.3,1.1]
[1750751912614,4.0429,2393.4,2393.3,1.1]
[1750751913610,3.2078,2393.4,2393.3,1.93513]
[1750751913812,3.2078,2393.7,2393.3,1.1]
[1750751914109,4.04281,2393.7,2393.5,0.83506]
[1750751914499,4.04281,2393.7,2393.3,1.1]
[1750751914500,0.8351,2393.4,2393.3,1.1]
[1750751914707,4.0429,2393.4,2393.3,1.1]
[1750751915511,4.0429,2393.4,2393.3,1.93513]
[1750751915512,3.2078,2393.4,2393.3,1.93513]
[1750751915904,4.0429,2393.4,2393.3,1.1]
[1750751916615,3.2078,2393.4,2393.3,1.93513]
[1750751917607,3.2078,2393.4,2393.3,1.1]
[1750751917814,3.2078,2393.4,2393.3,1.93513]
[1750751918713,3.2078,2393.7,2393.6,0.83501]
[1750751919323,3.2078,2394.1,2394.0,0.83489]
[1750751919909,3.2078,2394.1,2393.3,0.8964]
[1750751920111,3.2078,2393.6,2393.2,0.83517]
[1750751920310,4.04295,2393.3,2393.2,0.83517]
[1750751920710,3.2078,2393.3,2393.0,2.3414]
[1750751920906,4.04295,2393.3,2393.2,0.83517]
[1750751921313,4.04295,2393.3,2393.2,1.93517]
[1750751922211,3.2078,2393.3,2393.2,1.93517]
[1750751922715,0.9498,2393.5,2393.4,0.8351]
[1750751922914,3.2078,2393.6,2393.5,0.83506]
[1750751923717,3.2078,2393.6,2393.5,5.83506]
[1750751924121,3.2078,2393.6,2393.5,0.83506]
[1750751924420,3.2078,2393.6,2393.5,5.83506]
[1750751924622,3.2078,2393.6,2393.5,7.24566]
[1750751925007,3.2078,2393.9,2393.6,0.83503]
[1750751925207,3.2078,2393.9,2393.8,0.83496]
[1750751926113,0.9037,2394.2,2393.7,1.4106]
[1750751926114,4.1115,2394.2,2394.1,0.83485]
[1750751926824,3.2078,2394.2,2394.1,0.83485]
[1750751927225,4.04262,2394.2,2394.1,0.83485]
[1750751927520,3.2078,2394.2,2394.1,1.93485]
[1750751927721,4.04262,2394.2,2394.1,1.93485]
[1750751928420,3.2078,2394.2,2394.1,1.93485]
[1750751928917,4.04262,2394.2,2394.1,1.93485]
[1750751929224,4.04262,2394.2,2394.1,1.1]
[1750751929721,4.04262,2394.2,2394.1,1.93485]
[1750751930211,4.04262,2394.2,2394.1,1.1]
[1750751934313,8.74610342,2394.2,2394.1,1.1]
[1750751934827,3.2078,2394.2,2394.1,1.93485]
[1750751935024,4.04262,2394.2,2394.1,1.1]
[1750751936618,5.47132,2394.2,2394.1,1.1]
[1750751938626,0.83482,2394.2,2394.1,1.1]
[1750751938932,0.9291,2394.5,2394.2,0.83479]
[1750751939123,0.83479,2394.3,2394.2,0.83479]
[1750751939427,0.83479,2394.3,2394.2,2.26289]
[1750751939628,0.83482,2394.2,2394.1,1.93483]
[1750751939829,0.83482,2394.2,2394.1,1.1]
[1750751940125,2.08741,2393.8,2393.2,0.83515]
[1750751940330,3.2078,2393.5,2393.2,1.4281]
[1750751940521,7.579,2393.8,2393.3,3.2078]
[1750751940720,0.83501,2393.7,2393.4,2.26318]
[1750751941122,8.41397,2393.8,2393.5,0.83505]
[1750751941324,0.83496,2393.8,2393.6,0.83501]
[1750751941521,7.91128342,2393.9,2392.7,3.3128994]
[1750751941822,1.85367981,2393.8,2393.3,3.2078]
[1750751942028,0.83498,2393.8,2393.5,0.83504]
[1750751942229,0.83495,2393.8,2393.6,1.4559]
[1750751942422,3.2078,2393.9,2393.6,1.4559]
[1750751942627,0.83496,2393.8,2393.6,1.4559]
[1750751943418,4.04274,2393.9,2393.6,2.29091]
[1750751943625,3.2078,2393.9,2393.6,2.29092]
[1750751943919,0.83498,2393.7,2393.6,1.4559]
[1750751944124,0.83497,2393.8,2393.6,1.4559]
[1750751944324,3.2078,2393.9,2393.6,1.4559]
[1750751944533,3.2078,2393.9,2393.7,0.83496]
[1750751944729,3.2078,2393.9,2393.8,2.28435]
[1750751945032,0.83482,2394.2,2393.9,0.83489]
[1750751945324,3.2078,2394.3,2394.0,2.28427]
[1750751945532,3.2078,2394.3,2394.1,0.83484]
[1750751945731,3.2078,2394.3,2394.2,1.4494]
[1750751945931,4.04257,2394.3,2394.2,1.4494]
[1750751946131,3.2078,2394.3,2394.2,1.4494]
[1750751946326,3.2078,2394.3,2394.2,2.28421]
[1750751946934,4.04257,2394.3,2394.2,1.4494]
[1750751947128,4.04257,2394.3,2394.2,2.5494]
[1750751949630,4.04257,2394.3,2394.0,8.4748]
[1750751949631,0.83495,2393.8,2393.3,2.08781]
[1750751949932,4.04278,2393.8,2393.5,1.76503]
[1750751950135,0.83498,2393.7,2393.6,2.4965]
[1750751950534,4.04277,2393.8,2393.6,3.33151]
[1750751950737,3.2078,2394.4,2393.6,15.0755]
[1750751951039,4.04255,2394.4,2394.2,0.83481]
[1750751951332,4.04255,2394.4,2394.1,0.83482]
[1750751951830,0.83477,2394.3,2394.2,1.3505]
[1750751952030,4.04257,2394.4,2394.2,1.3505]
[1750751952240,0.83477,2394.3,2394.2,1.3505]
[1750751952438,3.2078,2394.4,2394.2,1.3505]
[1750751952637,4.04256,2394.4,2394.2,2.1853]
[1750751952834,3.2078,2394.4,2394.2,1.3505]
[1750751953436,0.83481,2394.2,2394.0,0.8981]
[1750751953635,3.2078,2394.4,2394.3,0.83477]
[1750751954031,4.04254,2394.4,2394.3,5.0]
[1750751954337,4.04254,2394.4,2394.3,7.579]
[1750751955141,3.2078,2394.4,2394.3,8.41377]
[1750751955330,3.2078,2394.4,2394.3,9.83297]
[1750751955530,3.2078,2394.4,2394.3,8.9982]
[1750751956042,4.04254,2394.4,2394.3,8.9982]
[1750751956743,3.2078,2394.4,2394.3,9.83297]
[1750751956937,4.04254,2394.4,2394.3,1.4192]
[1750751957537,3.2078,2394.4,2394.3,2.25397]
[1750751957836,3.2078,2394.4,2394.3,1.4192]
[1750751958041,4.04254,2394.4,2394.3,1.4192]
[1750751961643,7.91128342,2394.4,2393.7,9.66544]
[1750751961938,0.83481,2394.2,2394.0,2.69195]
[1750751962136,0.83481,2394.2,2394.1,1.4456]
[1750751962739,3.2078,2394.4,2394.2,0.8348]
[1750751962939,4.04254,2394.4,2394.3,1.4441]
[1750751963333,0.83492,2393.9,2393.6,1.1]
[1750751963534,2.08694,2394.3,2393.7,0.83498]
[1750751963535,3.2078,2394.0,2393.7,0.83498]
[1750751963731,7.91128342,2394.0,2393.6,1.93499]
[1750751963936,0.83494,2393.9,2393.7,0.83497]
[1750751964146,4.04269,2394.0,2393.8,0.83492]
[1750751964438,0.83491,2393.9,2393.6,1.1]
[1750751964639,3.2078,2394.0,2393.7,1.4441]
[1750751964842,3.2078,2394.0,2393.9,0.83491]
[1750751965935,3.2078,2394.3,2393.9,9.66526]
[1750751966139,4.04258,2394.3,2394.1,0.83482]
[1750751966349,4.04258,2394.3,2394.2,1.4358]
[1750751966641,4.04257,2394.3,2394.2,1.4358]
[1750751967037,3.2078,2394.3,2394.2,2.27061]
[1750751968146,4.04257,2394.3,2394.2,2.27061]
[1750751968341,3.2078,2394.3,2394.2,2.27061]
[1750751968548,3.2078,2394.3,2394.2,3.19121]
[1750751969739,0.2522,2394.3,2394.2,3.19121]
[1750751970447,4.04246,2394.7,2394.5,0.83469]
[1750751970648,4.04245,2394.7,2394.5,0.83469]
[1750751970849,0.8895,2394.8,2394.7,0.83463]
[1750751971148,0.83464,2394.7,2394.5,0.83468]
[1750751972544,0.83464,2394.7,2394.6,0.83467]
[1750751972750,0.83464,2394.7,2394.5,0.83469]
[1750751972946,0.83467,2394.6,2394.4,1.4072]
[1750751973147,0.8895,2394.8,2394.5,0.8347]
[1750751973343,2.97602,2394.8,2394.4,2.24191]
[1750751973548,0.83469,2394.6,2394.4,2.24191]
[1750751973946,0.8347,2394.5,2394.4,1.4072]
[1750751974253,0.83474,2394.4,2394.3,7.575]
[1750751974453,0.83478,2394.3,2394.1,0.83482]
[1750751974749,0.83482,2394.2,2394.1,0.83484]
[1750751975153,0.8348,2394.3,2394.1,0.83484]
[1750751975355,0.8348,2394.3,2394.2,0.83481]
[1750751975651,1.79205,2394.4,2394.2,0.83478]
[1750751976356,1.79205,2394.4,2394.3,0.83477]
[1750751976649,0.9573,2394.4,2394.3,0.83477]
[1750751976848,0.8895,2394.8,2394.7,0.83463]
[1750751979652,1.7241,2394.8,2394.6,0.83465]
[1750751979851,0.83464,2394.7,2394.3,11.11703]
[1750751980051,0.8895,2394.8,2394.7,0.83463]
[1750751980452,0.8895,2394.8,2394.7,1.93463]
[1750751981259,0.9473,2395.5,2394.7,16.8818]
[1750751981555,1.0218218,2395.4,2395.1,0.83447]
[1750751981759,0.8344,2395.4,2395.2,0.83446]
[1750751982053,0.83444,2395.3,2395.1,0.83448]
[1750751982260,0.9473,2395.5,2395.3,0.8344]
[1750751982550,0.83439,2395.4,2395.2,2.20493]
[1750751982751,0.83446,2395.2,2395.1,7.574]
[1750751982957,0.83444,2395.3,2395.1,8.40849]
[1750751983158,0.83441,2395.4,2395.1,8.40849]
[1750751983458,0.83444,2395.3,2395.1,8.40849]
[1750751983659,0.83442,2395.4,2395.2,0.83446]
[1750751983959,7.01838342,2395.5,2395.1,7.574]
[1750751984159,0.83444,2395.3,2395.1,7.574]
[1750751984656,0.83446,2395.2,2395.1,7.574]
[1750751985656,2.08611,2395.3,2394.8,0.9172]
[1750751985848,2.08615,2395.2,2394.8,8.4912]
[1750751986053,0.83455,2395.0,2394.8,9.32579]
[1750751986253,0.83456,2394.9,2394.8,8.4912]
[1750751986650,0.83456,2394.9,2394.8,7.574]
[1750751987056,0.8346,2394.8,2394.7,1.1]
[1750751987255,3.00482,2394.8,2394.2,1.373]
[1750751987465,0.83477,2394.3,2394.1,9.4365]
[1750751987761,0.83477,2394.3,2394.2,1.1]
[1750751988466,3.20927,2394.3,2394.2,1.1]
[1750751989359,3.20927,2394.3,2393.8,0.83494]
[1750751989360,0.8349,2394.0,2393.8,0.83494]
[1750751989567,0.8349,2394.0,2393.8,8.40795]
[1750751989761,0.83487,2394.1,2393.8,8.40795]
[1750751989969,3.02569,2394.2,2393.7,3.2078]
[1750751990267,0.83497,2393.8,2393.5,0.83504]
[1750751990458,0.83497,2393.8,2393.6,1.93501]
[1750751990770,4.6549,2394.1,2393.7,0.83497]
[1750751990771,0.83491,2394.0,2393.7,0.83497]
[1750751991060,6.74204,2394.1,2393.6,1.1]
[1750751991263,6.74204,2394.1,2393.6,1.935]
[1750751991564,0.83494,2393.9,2393.6,1.935]
[1750751991959,0.83497,2393.8,2393.6,1.93501]
[1750751992157,0.83497,2393.8,2393.6,1.1]
[1750751992356,0.83497,2393.8,2393.6,1.93501]
[1750751992563,0.83493,2393.9,2393.7,0.83498]
[1750751992763,0.83495,2393.8,2393.6,1.1]
[1750751992964,0.83498,2393.7,2393.6,1.1]
[1750751993359,0.83497,2393.8,2393.6,1.1]
[1750751993559,0.83497,2393.8,2393.6,1.93501]
[1750751993763,2.17544,2393.9,2393.6,1.1]
[1750751993963,0.83496,2393.8,2393.6,1.1]
[1750751994369,1.3405,2393.9,2393.6,1.1]
[1750751994660,2.17542,2393.9,2393.6,1.93501]
[1750751995265,2.17542,2393.9,2393.7,0.83497]
[1750751995472,2.17542,2393.9,2393.6,1.93499]
[1750751995663,0.83488,2394.0,2393.8,0.83491]
[1750751996164,0.8349,2394.0,2393.8,0.83495]
[1750751996470,0.83491,2393.9,2393.7,0.83495]
[1750751996668,3.2078,2394.1,2393.8,0.83494]
[1750751997064,0.83496,2393.8,2393.6,3.287]
[1750751997966,0.83498,2393.7,2393.6,2.452]
[1750751998367,0.83497,2393.8,2393.6,3.28702]
[1750751998868,0.83498,2393.7,2393.6,1.1]
[1750751999068,4.04277,2393.8,2393.6,1.93502]
[1750751999268,3.2078,2393.8,2393.5,1.3581]
[1750751999668,4.04277,2393.8,2393.6,0.83502]
[1750752000271,3.2078,2393.8,2393.4,1.1]
[1750752000466,3.2078,2393.8,2393.4,2.4581]
[1750752000765,3.2078,2393.8,2393.6,0.83499]
[1750752000766,4.04276,2393.8,2393.6,0.83499]
[1750752000970,0.83499,2393.7,2393.5,0.83504]
[1750752001270,3.2078,2393.8,2393.4,4.54581]
[1750752001470,3.2078,2393.8,2393.7,0.83498]
[1750752001663,0.83484,2394.1,2393.9,0.83488]
[1750752001872,0.9386,2394.2,2394.0,0.83487]
[1750752002070,1.77343,2394.2,2394.0,0.83487]
[1750752002366,0.83485,2394.1,2393.8,1.3581]
[1750752002573,2.3938,2394.2,2393.8,1.3581]
[1750752003474,2.3938,2394.2,2393.9,0.83491]
[1750752003671,0.83491,2393.9,2393.8,1.3581]